[Event "AI Cup Div-3 2023"]
[Site "Online"]
[Date "2023.09.26"]
[Round "52.1"]
[White "Paravyan, David"]
[Black "Kovalev, Vladislav"]
[Result "0-1"]
[Annotator "ChessBase"]
[ECO "C92"]
[WhiteElo "2599"]
[BlackElo "2582"]
[PlyCount "88"]
[EventDate "2023.09.18"]
[EventType "k.o."]
[EventCountry "NET"]
[SourceTitle "playchess.com"]
[Source "ChessBase"]
[SourceQuality "1"]
[TimeControl "900+3"]

1. e4 {[%emt 0:00:06]} e5 {[%emt 0:00:04]} 2. Nf3 {[%emt 0:00:02]} Nc6 {[%emt 0:00:01]} 3. Bb5 {[%emt 0:00:01]} a6 {[%emt 0:00:03]} 4. Ba4 {[%emt 0:00:02]} Nf6 {[%emt 0:00:02]} 5. O-O {[%emt 0:00:01]} Be7 {[%emt 0:00:00]} 6. Re1 {[%emt 0:00:00]} b5 {[%emt 0:00:01]} 7. Bb3 {[%emt 0:00:01]} d6 {[%emt 0:00:00]} 8. c3 {[%emt 0:00:00]} O-O {[%emt 0:00:01]} 9. h3 {[%emt 0:00:01]} Bb7 {[%emt 0:00:17]} 10. d4 {[%emt 0:00:08]} Re8 {[%emt 0:00:02]} 11. a3 {[%emt 0:00:09]} h6 {[%emt 0:00:25]} 12. Ba2 {[%emt 0:00:05]} Bf8 {[%emt 0:00:06]} 13. d5 {[%emt 0:00:13]} Ne7 {[%emt 0:01:19]} 14. c4 {[%emt 0:00:12]} bxc4 {[%emt 0:01:12]} 15. Bxc4 {[%emt 0:00:04]} c6 {[%emt 0:00:00]} 16. dxc6 {[%emt 0:00:02]} Bxc6 {[%emt 0:00:01]} 17. Nc3 {[%emt 0:00:02]} Qc7 {[%emt 0:00:30]} 18. b3 {[%emt 0:02:35]} Qb7 {[%emt 0:00:35]} 19. Qd3 {[%emt 0:02:14]} Nc8 {[%emt 0:02:16]} 20. Be3 {[%emt 0:00:50]} Nxe4 {[%emt 0:01:34]} 21. Nd5 {[%emt 0:00:02]} Ne7 {[%emt 0:00:10]} 22. Nb4 {[%emt 0:04:19]} Bb5 {[%emt 0:00:30]} 23. Rab1 {[%emt 0:01:53]} Nf6 {[%emt 0:02:28]} 24. Qxd6 {[%emt 0:00:19]} Nc6 {[%emt 0:00:12]} 25. Qd2 {[%emt 0:00:41]} Nxb4 {[%emt 0:00:03]} 26. axb4 {[%emt 0:00:05]} Rad8 {[%emt 0:00:00]} 27. Qc2 {[%emt 0:00:26]} Bxb4 {[%emt 0:00:09]} 28. Red1 {[%emt 0:00:01]} Rc8 {[%emt 0:00:46]} 29. Qf5 {[%emt 0:00:57]} Qe4 {[%emt 0:01:07]} 30. Qxe4 {[%emt 0:00:33]} Nxe4 {[%emt 0:00:00]} 31. Bxb5 {[%emt 0:00:19]} axb5 {[%emt 0:00:00]} 32. Ra1 {[%emt 0:00:03]} f5 {[%emt 0:00:39]} 33. Ra7 {[%emt 0:00:05]} f4 {[%emt 0:00:08]} 34. Bb6 {[%emt 0:00:08]} Rc6 {[%emt 0:00:13]} 35. Rdd7 {[%emt 0:00:04]} Bf8 {[%emt 0:00:12]} 36. Rab7 {[%emt 0:00:05]} Rc1+ {[%emt 0:00:19]} 37. Kh2 {[%emt 0:00:01]} Nf6 {[%emt 0:00:01]} 38. Rdc7 {[%emt 0:00:02]} Rxc7 {[%emt 0:00:10]} 39. Bxc7 {[%emt 0:00:02]} e4 {[%emt 0:00:01]} 40. Nd4 {[%emt 0:00:01]} Nd5 {[%emt 0:00:30]} 41. Nxb5 {[%emt 0:00:07]} Nxc7 {[%emt 0:00:40]} 42. Rxc7 {[%emt 0:00:04]} e3 {[%emt 0:00:01]} 43. fxe3 {[%emt 0:00:01]} fxe3 {[%emt 0:00:00]} 44. Rc1 {[%emt 0:00:05]} e2 {[%emt 0:00:02]} 0-1

[Event "AI Cup Div-3 2023"]
[Site "Online"]
[Date "2023.09.26"]
[Round "52.1"]
[White "Vaibhav, Suri"]
[Black "Demchenko, Anton"]
[Result "0-1"]
[Annotator "ChessBase"]
[ECO "C55"]
[WhiteElo "2588"]
[BlackElo "2608"]
[PlyCount "144"]
[EventDate "2023.09.18"]
[EventType "k.o."]
[EventCountry "NET"]
[SourceTitle "playchess.com"]
[Source "ChessBase"]
[SourceQuality "1"]
[TimeControl "900+3"]

1. e4 {[%emt 0:00:06]} e5 {[%emt 0:00:06]} 2. Nf3 {[%emt 0:00:01]} Nc6 {[%emt 0:00:00]} 3. Bc4 {[%emt 0:00:01]} Nf6 {[%emt 0:00:02]} 4. d3 {[%emt 0:00:02]} h6 {[%emt 0:00:01]} 5. c3 {[%emt 0:00:02]} d6 {[%emt 0:00:01]} 6. a4 {[%emt 0:00:01]} a5 {[%emt 0:00:02]} 7. Qb3 {[%emt 0:00:22]} Qe7 {[%emt 0:00:03]} 8. O-O {[%emt 0:00:02]} g6 {[%emt 0:00:02]} 9. Re1 {[%emt 0:00:02]} Bg7 {[%emt 0:00:01]} 10. Nbd2 {[%emt 0:00:02]} O-O {[%emt 0:00:06]} 11. Nf1 {[%emt 0:00:06]} Bg4 {[%emt 0:03:12]} 12. N3d2 {[%emt 0:00:14]} Rab8 {[%emt 0:00:55]} 13. Ne3 {[%emt 0:00:11]} Be6 {[%emt 0:00:01]} 14. Bxe6 {[%emt 0:04:07]} fxe6 {[%emt 0:00:05]} 15. Qb5 {[%emt 0:00:57]} Qf7 {[%emt 0:00:38]} 16. Rf1 {[%emt 0:00:04]} d5 {[%emt 0:01:32]} 17. Qb3 {[%emt 0:01:52]} Rfd8 {[%emt 0:00:15]} 18. Qc2 {[%emt 0:00:57]} Nh5 {[%emt 0:00:44]} 19. Nb3 {[%emt 0:01:11]} b6 {[%emt 0:00:17]} 20. Ng4 {[%emt 0:00:33]} Nf4 {[%emt 0:01:25]} 21. g3 {[%emt 0:00:25]} h5 {[%emt 0:00:18]} 22. Ne3 {[%emt 0:00:02]} Nh3+ {[%emt 0:00:34]} 23. Kg2 {[%emt 0:00:01]} Ng5 {[%emt 0:00:00]} 24. f3 {[%emt 0:00:10]} Nh7 {[%emt 0:00:10]} 25. Qe2 {[%emt 0:00:06]} Rd7 {[%emt 0:00:06]} 26. Bd2 {[%emt 0:00:09]} Rbd8 {[%emt 0:00:02]} 27. Rad1 {[%emt 0:00:02]} Rd6 {[%emt 0:00:11]} 28. Bc1 {[%emt 0:00:03]} Qd7 {[%emt 0:00:01]} 29. Qc2 {[%emt 0:00:09]} Ne7 {[%emt 0:00:12]} 30. Nd2 {[%emt 0:00:53]} c5 {[%emt 0:00:22]} 31. Rfe1 {[%emt 0:00:04]} g5 {[%emt 0:00:13]} 32. exd5 {[%emt 0:00:34]} exd5 {[%emt 0:00:02]} 33. c4 {[%emt 0:00:01]} d4 {[%emt 0:00:07]} 34. Nef1 {[%emt 0:00:02]} Rg6 {[%emt 0:00:07]} 35. Ne4 {[%emt 0:00:26]} Rf8 {[%emt 0:00:01]} 36. h3 {[%emt 0:00:15]} Nc6 {[%emt 0:00:48]} 37. b3 {[%emt 0:00:08]} Nd8 {[%emt 0:00:14]} 38. Nh2 {[%emt 0:00:02]} Ne6 {[%emt 0:00:01]} 39. Rf1 {[%emt 0:00:02]} Nf6 {[%emt 0:00:03]} 40. Rde1 {[%emt 0:00:02]} Ne8 {[%emt 0:00:07]} 41. Qe2 {[%emt 0:00:06]} Bh8 {[%emt 0:00:10]} 42. Rf2 {[%emt 0:00:01]} N8g7 {[%emt 0:00:01]} 43. Kh1 {[%emt 0:00:08]} Nf5 {[%emt 0:00:30]} 44. g4 {[%emt 0:00:20]} Nfg7 {[%emt 0:00:02]} 45. Ng3 {[%emt 0:01:03]} h4 {[%emt 0:00:19]} 46. Nh5 {[%emt 0:00:01]} Rh6 {[%emt 0:00:53]} 47. Qe4 {[%emt 0:00:17]} Qf7 {[%emt 0:00:17]} 48. Kg1 {[%emt 0:00:16]} Re8 {[%emt 0:00:12]} 49. Rfe2 {[%emt 0:00:13]} Rf8 {[%emt 0:00:30]} 50. Qd5 {[%emt 0:00:20]} Ne8 {[%emt 0:00:05]} 51. Rxe5 {[%emt 0:00:08]} Bxe5 {[%emt 0:00:03]} 52. Rxe5 {[%emt 0:00:00]} Rg6 {[%emt 0:00:06]} 53. Bxg5 {[%emt 0:00:06]} N8c7 {[%emt 0:00:01]} 54. Qb7 {[%emt 0:00:11]} Nxg5 {[%emt 0:00:04]} 55. Rf5 {[%emt 0:00:04]} Nxh3+ {[%emt 0:00:21]} 56. Kf1 {[%emt 0:00:03]} Qd7 {[%emt 0:00:08]} 57. Rxf8+ {[%emt 0:00:03]} Kxf8 {[%emt 0:00:00]} 58. Qb8+ {[%emt 0:00:02]} Ne8 {[%emt 0:00:03]} 59. Qe5 {[%emt 0:00:02]} Qe6 {[%emt 0:00:25]} 60. Qh8+ {[%emt 0:00:04]} Ke7 {[%emt 0:00:01]} 61. Kg2 {[%emt 0:00:04]} Ng5 {[%emt 0:00:15]} 62. Nf4 {[%emt 0:00:02]} h3+ {[%emt 0:00:09]} 63. Kf1 {[%emt 0:00:04]} Qf7 {[%emt 0:00:06]} 64. Qe5+ {[%emt 0:00:03]} Ne6 {[%emt 0:00:06]} 65. Nxg6+ {[%emt 0:00:03]} Qxg6 {[%emt 0:00:00]} 66. Qb8 {[%emt 0:00:02]} Qxd3+ {[%emt 0:00:01]} 67. Kf2 {[%emt 0:00:01]} Qxb3 {[%emt 0:00:04]} 68. Kg3 {[%emt 0:00:03]} d3 {[%emt 0:00:01]} 69. Qb7+ {[%emt 0:00:01]} N8c7 {[%emt 0:00:01]} 70. Nf1 {[%emt 0:00:02]} Qd1 {[%emt 0:00:05]} 71. Ne3 {[%emt 0:00:02]} Qg1+ {[%emt 0:00:01]} 72. Kh4 {[%emt 0:00:00]} Qxe3 {[%emt 0:00:01]} 0-1

[Event "AI Cup Div-3 2023"]
[Site "Online"]
[Date "2023.09.26"]
[Round "52.1"]
[White "Muradli, Mahammad"]
[Black "Guseinov, Gadir"]
[Result "1-0"]
[Annotator "ChessBase"]
[ECO "E94"]
[WhiteElo "2550"]
[BlackElo "2636"]
[PlyCount "65"]
[EventDate "2023.09.18"]
[EventType "k.o."]
[EventCountry "NET"]
[SourceTitle "playchess.com"]
[Source "ChessBase"]
[SourceQuality "1"]
[TimeControl "900+3"]

1. d4 {[%emt 0:00:08]} Nf6 {[%emt 0:00:06]} 2. c4 {[%emt 0:00:02]} g6 {[%emt 0:00:01]} 3. Nc3 {[%emt 0:00:05]} Bg7 {[%emt 0:00:01]} 4. e4 {[%emt 0:00:01]} d6 {[%emt 0:00:01]} 5. Nf3 {[%emt 0:00:07]} O-O {[%emt 0:00:11]} 6. Be2 {[%emt 0:00:02]} e5 {[%emt 0:00:27]} 7. O-O {[%emt 0:00:01]} exd4 {[%emt 0:00:07]} 8. Nxd4 {[%emt 0:00:00]} Re8 {[%emt 0:00:01]} 9. f3 {[%emt 0:00:17]} c6 {[%emt 0:00:02]} 10. Bf4 {[%emt 0:00:03]} Nh5 {[%emt 0:00:34]} 11. Be3 {[%emt 0:00:01]} f5 {[%emt 0:00:01]} 12. Qd2 {[%emt 0:00:04]} f4 {[%emt 0:00:13]} 13. Bf2 {[%emt 0:00:02]} Be5 {[%emt 0:00:08]} 14. Rfd1 {[%emt 0:00:52]} Qf6 {[%emt 0:00:11]} 15. Nb3 {[%emt 0:00:10]} Nd7 {[%emt 0:00:32]} 16. c5 {[%emt 0:01:35]} Nxc5 {[%emt 0:00:20]} 17. Nxc5 {[%emt 0:00:05]} dxc5 {[%emt 0:00:02]} 18. Bc4+ {[%emt 0:00:54]} Be6 {[%emt 0:00:40]} 19. Bxe6+ {[%emt 0:00:03]} Qxe6 {[%emt 0:00:11]} 20. Bxc5 {[%emt 0:00:02]} b6 {[%emt 0:00:57]} 21. Bd4 {[%emt 0:00:48]} Rad8 {[%emt 0:00:23]} 22. Qf2 {[%emt 0:00:04]} Qf6 {[%emt 0:00:10]} 23. Bxe5 {[%emt 0:01:06]} Qxe5 {[%emt 0:00:00]} 24. Rd2 {[%emt 0:00:08]} Ng7 {[%emt 0:04:47]} 25. Rad1 {[%emt 0:00:18]} Ne6 {[%emt 0:00:03]} 26. Rd7 {[%emt 0:00:55]} Rxd7 {[%emt 0:01:36]} 27. Rxd7 {[%emt 0:00:00]} Rd8 {[%emt 0:00:01]} 28. Rxa7 {[%emt 0:01:31]} Qb8 {[%emt 0:00:57]} 29. Re7 {[%emt 0:03:08]} Qd6 {[%emt 0:00:05]} 30. Qh4 {[%emt 0:01:49]} Qd4+ {[%emt 0:00:15]} 31. Kf1 {[%emt 0:00:02]} Qd3+ {[%emt 0:00:07]} 32. Ne2 {[%emt 0:00:07]} Nd4 {[%emt 0:02:29]} 33. Qxh7+ {[%emt 0:00:04]} 1-0

[Event "AI Cup Div-3 2023"]
[Site "Online"]
[Date "2023.09.26"]
[Round "52.2"]
[White "Radjabov, Teimour"]
[Black "Malakhov, Vladimir"]
[Result "1/2-1/2"]
[Annotator "TA"]
[ECO "D37"]
[WhiteElo "2745"]
[BlackElo "2646"]
[PlyCount "85"]
[EventDate "2023.09.18"]
[EventType "k.o."]
[EventCountry "NET"]
[SourceTitle "playchess.com"]
[Source "ChessBase"]
[SourceQuality "1"]
[TimeControl "900+3"]

{[%evp 9,85,10,16,6,11,17,9,0,2,-1,3,-10,2,0,0,0,0,0,0,0,0,4,18,0,11,-13,-7,-23,-22,-22,16,-29,-31,-27,0,-3,-5,-7,0,-32,-15,-13,0,0,0,0,0,0,21,-27,86,75,185,206,202,197,317,323,318,287,298,0,0,0,0,0,0,0,0,0,0,0,0,0,0,0,0,0]} 1. d4 {[%emt 0:00:03]} d5 {[%emt 0:00:20]} 2. c4 {[%emt 0:00:04]} e6 {[%emt 0:00:01]} 3. Nf3 {[%emt 0:00:03]} Nf6 {[%emt 0:00:01]} 4. Nc3 {[%emt 0:00:01]} a6 {[%emt 0:00:02]} 5. e3 {[%emt 0:00:27]} b6 {[%emt 0:00:05]} 6. b3 {[%emt 0:00:10] D37: Queen's Gambit Declined: 5 Bf4.} Bb7 {[%emt 0:00:02]} 7. Bb2 {[%emt 0:00:01]} Nbd7 {[%emt 0:00:01]} 8. Be2 {[%emt 0:00:05]} Bd6 {[%emt 0:00:03]} 9. O-O {[%emt 0:00:00]} O-O {[%emt 0:00:01]} 10. Rc1 {[%emt 0:00:02]} Qe7 {[%emt 0:01:22]} 11. cxd5 {[%emt 0:00:12]} exd5 {[%emt 0:00:03]} 12. Qc2 {[%emt 0:00:01]} Rac8 {[%emt 0:00:24]} 13. Rfd1 {[%emt 0:00:02]} Ne4 {[%emt 0:00:20]} 14. Nxe4 {[%emt 0:00:28]} dxe4 {[%emt 0:00:02]} 15. Ne5 {[%emt 0:00:01] [#]} f5 $146 {[%emt 0:01:22]} ({Predecessor:} 15... Nxe5 16. dxe5 Bxe5 17. Bxe5 Qxe5 18. Rd7 Qe6 19. Rxc7 Rxc7 20. Qxc7 Qc8 21. Rc3 Re8 {1-0 Kilic,G (1923)-Aydogdu,C (1803) TUR Cup Antalya 2020 (8)}) 16. a4 {[%emt 0:03:22]} Kh8 {[%emt 0:01:01]} 17. Nxd7 {[%emt 0:01:37]} Qxd7 {[%emt 0:00:03]} 18. d5 {[%emt 0:00:01]} Qf7 {[%emt 0:01:37]} 19. g3 {[%emt 0:00:34]} Bxd5 {[%emt 0:02:01]} (19... a5 $5 {[%cal Rb7d5]}) 20. Qc3 {[%emt 0:00:02]} (20. Bxa6 {simplifies} Rcd8 21. Bc4 Bxc4 22. bxc4 Bb4 23. Bd4) 20... Bb7 {[%emt 0:00:43]} 21. Bc4 {[%emt 0:01:04]} Qg6 {[%emt 0:01:07]} (21... Qe7 $5) 22. Bd5 $132 {[%emt 0:01:52][%mdl 2048] White puts up resistance} Bxd5 {[%emt 0:00:05]} 23. Rxd5 {[%emt 0:00:01]} Rce8 {[%emt 0:00:31]} 24. Qd4 {[%emt 0:01:26]} (24. a5 $5 {[%cal Ra5b6]} Rb8 25. Qc4 $11) 24... Re6 {[%emt 0:01:49]} 25. a5 {[%emt 0:00:12]} b5 {[%emt 0:00:47]} 26. Rc6 {[%emt 0:00:40]} h5 $1 {[%emt 0:00:01][%cal Bh7h5,Bh5h4][%mdl 32]} 27. Rxa6 {[%emt 0:01:09][%cal Oa6c6]} h4 $1 {[%emt 0:00:02]} 28. Rc6 {[%emt 0:00:45][%cal Oa5a6] Hoping for a6!} Rff6 {[%emt 0:00:59][%cal Rd6g3] Threatens to win with ...Bxg3!} 29. Rc2 {[%emt 0:00:44]} (29. Kh1 $142) 29... f4 {[%emt 0:00:02]} (29... hxg3 $11 {remains equal.} 30. fxg3 (30. hxg3 c6 $11) 30... c6) 30. exf4 $16 {[%emt 0:00:08] f5 would be deadly. White is more active.} (30. Rxb5 $2 hxg3 31. fxg3 fxg3 $19) 30... Bxf4 {[%emt 0:00:32] [#]} (30... e3 $16 31. f5 exf2+ 32. Rxf2 (32. Qxf2 Qe8 $16) 32... Re1+ 33. Kg2 (33. Rf1 Rxf1+ 34. Kxf1 Rxf5+ 35. Rxf5 Qxf5+ 36. Ke1 Bf8 $14) 33... h3+ 34. Kxh3 Qg5) 31. Qd1 $1 $18 {[%emt 0:00:03]} (31. Rxb5 $2 e3 32. Qd1 exf2+ 33. Rxf2 hxg3 34. Qh5+ Kg8 35. Rb8+ (35. Bxf6 $2 gxh2+ 36. Kh1 Qg1#) 35... Kf7 36. Qxg6+ Kxg6 37. Bxf6 (37. hxg3 $2 Be3 $19 {[%mdl 64] Pin}) 37... gxf2+ 38. Kxf2 Kxf6 $19) 31... hxg3 {[%emt 0:00:14]} 32. hxg3 {[%emt 0:00:03]} (32. Rxb5 gxf2+ 33. Kh1 e3 34. Rh5+ Kg8 35. Qd8+ Rf8) 32... Rf5 {[%emt 0:00:29]} (32... Rf8 {was worth a try.} 33. Qh5+ (33. Rxb5 Kg8 $16) 33... Kg8) 33. Rxf5 {[%emt 0:00:27]} Qxf5 {[%emt 0:00:01] [#]} 34. Qd7 {[%emt 0:00:00][%csl Gb2][%cal Rd7g7] Against Rd6} (34. gxf4 {is a self mate.} Rg6+ 35. Kf1 Qh3+ 36. Ke2 Qf3+ 37. Kd2 Rd6+) (34. Qd8+ Kh7 35. Qh4+ (35. gxf4 $2 Qg4+ 36. Kf1 Rh6 $19) 35... Bh6 36. Rxc7 Kg8 37. Qd8+ Kh7 $14) 34... Bh6 {[%emt 0:00:12] ...e3 is the strong threat.} 35. Rc6 $2 {[%emt 0:00:03]} ({Worse is} 35. Qxc7 e3 36. Bxg7+ Bxg7 37. fxe3 Bh6 38. Qc8+ Kh7 39. Rc7+ Kg6 40. Qg8+ Kh5 41. Qf7+ Qxf7 42. Rxf7 b4 $17) ({Only move:} 35. Rxc7 $18 {[%cal Rb2g7]} Qg6 36. Qf7 (36. Qxb5 e3 $11) 36... Qxf7 37. Rxf7) 35... e3 $1 $11 {[%emt 0:00:07] The position is equal.} 36. Qxe6 {[%emt 0:00:38]} Qxf2+ {[%emt 0:00:01]} 37. Kh1 {[%emt 0:00:01]} Qf1+ {[%emt 0:00:08]} 38. Kh2 {[%emt 0:00:01]} Qe2+ {[%emt 0:00:03]} 39. Kh3 {[%emt 0:00:07]} Qh5+ {[%emt 0:00:01]} 40. Kg2 {[%emt 0:00:01]} Qe2+ {[%emt 0:00:01]} 41. Kh3 {[%emt 0:00:01]} Qh5+ {[%emt 0:00:01]} 42. Kg2 {[%emt 0:00:01]} Qe2+ {[%emt 0:00:02]} 43. Kh3 {[%emt 0:00:01] White really could win this.   Weighted Error Value: White=0.21 (precise) /Black=0.18 (very precise)} 1/2-1/2

[Event "AI Cup Div-3 2023"]
[Site "Online"]
[Date "2023.09.26"]
[Round "52.2"]
[White "Guseinov, Gadir"]
[Black "Muradli, Mahammad"]
[Result "1-0"]
[Annotator "ChessBase"]
[ECO "B96"]
[WhiteElo "2636"]
[BlackElo "2550"]
[PlyCount "77"]
[EventDate "2023.09.18"]
[EventType "k.o."]
[EventCountry "NET"]
[SourceTitle "playchess.com"]
[Source "ChessBase"]
[SourceQuality "1"]
[TimeControl "900+3"]

1. e4 {[%emt 0:00:03]} c5 {[%emt 0:00:06]} 2. Nf3 {[%emt 0:00:03]} d6 {[%emt 0:00:01]} 3. d4 {[%emt 0:00:01]} cxd4 {[%emt 0:00:13]} 4. Nxd4 {[%emt 0:00:00]} Nf6 {[%emt 0:00:01]} 5. Nc3 {[%emt 0:00:01]} a6 {[%emt 0:00:07]} 6. Bg5 {[%emt 0:00:01]} e6 {[%emt 0:00:15]} 7. f4 {[%emt 0:00:03]} Nbd7 {[%emt 0:01:18]} 8. Qe2 {[%emt 0:00:05]} Qc7 {[%emt 0:00:55]} 9. O-O-O {[%emt 0:00:03]} Be7 {[%emt 0:01:02]} 10. Nf3 {[%emt 0:00:04]} h6 {[%emt 0:01:30]} 11. Bh4 {[%emt 0:00:03]} g5 {[%emt 0:00:01]} 12. fxg5 {[%emt 0:00:12]} hxg5 {[%emt 0:00:00]} 13. Bxg5 {[%emt 0:00:03]} b5 {[%emt 0:00:05]} 14. a3 {[%emt 0:00:20]} Rb8 {[%emt 0:01:07]} 15. Qe1 {[%emt 0:00:39]} Bb7 {[%emt 0:01:46]} 16. Bd3 {[%emt 0:00:22]} Ng4 {[%emt 0:00:17]} 17. Bxe7 {[%emt 0:00:20]} Kxe7 {[%emt 0:00:00]} 18. Rf1 {[%emt 0:00:00]} Nge5 {[%emt 0:00:16]} 19. Nxe5 {[%emt 0:01:05]} Nxe5 {[%emt 0:00:00]} 20. Qf2 {[%emt 0:00:13]} Qc5 {[%emt 0:02:11]} 21. Qf6+ {[%emt 0:00:53]} Kd7 {[%emt 0:00:02]} 22. h3 {[%emt 0:00:12]} Rbg8 {[%emt 0:00:50]} 23. Kb1 {[%emt 0:02:14]} Rh7 {[%emt 0:00:09]} 24. Rd2 {[%emt 0:00:42]} Rg6 {[%emt 0:00:23]} 25. Qf4 {[%emt 0:00:02]} Rh8 {[%emt 0:01:28]} 26. Be2 {[%emt 0:00:28]} Ke7 {[%emt 0:00:54]} 27. h4 {[%emt 0:00:53]} Rhh6 {[%emt 0:01:13]} 28. h5 {[%emt 0:00:33]} Rf6 {[%emt 0:00:01]} 29. Qh4 {[%emt 0:00:01]} Qe3 {[%emt 0:00:03]} 30. Rfd1 {[%emt 0:00:10]} Qf4 {[%emt 0:00:12]} 31. g4 {[%emt 0:00:03]} Bxe4 {[%emt 0:00:06]} 32. Rd4 {[%emt 0:00:46]} d5 {[%emt 0:00:03]} 33. Nxe4 {[%emt 0:00:10]} dxe4 {[%emt 0:00:00]} 34. Qe1 {[%emt 0:00:00]} Kf8 {[%emt 0:00:02]} 35. Qb4+ {[%emt 0:00:04]} Kg7 {[%emt 0:00:01]} 36. Rd8 {[%emt 0:00:00]} Ng6 {[%emt 0:00:10]} 37. hxg6 {[%emt 0:00:06]} Kxg6 {[%emt 0:00:01]} 38. Rg8+ {[%emt 0:00:17]} Kh7 {[%emt 0:00:02]} 39. Qf8 {[%emt 0:00:01]} 1-0

[Event "AI Cup Div-3 2023"]
[Site "Online"]
[Date "2023.09.26"]
[Round "52.2"]
[White "Chigaev, Maksim"]
[Black "Durarbayli, Vasif"]
[Result "1/2-1/2"]
[Annotator "ChessBase"]
[ECO "B20"]
[WhiteElo "2615"]
[BlackElo "2625"]
[PlyCount "101"]
[EventDate "2023.09.18"]
[EventType "k.o."]
[EventCountry "NET"]
[SourceTitle "playchess.com"]
[Source "ChessBase"]
[SourceQuality "1"]
[TimeControl "900+3"]

1. e4 {[%emt 0:00:03]} c5 {[%emt 0:00:04]} 2. Ne2 {[%emt 0:00:08]} d6 {[%emt 0:00:01]} 3. g3 {[%emt 0:00:02]} d5 {[%emt 0:00:01]} 4. exd5 {[%emt 0:00:00]} Qxd5 {[%emt 0:00:01]} 5. Rg1 {[%emt 0:00:01]} Bg4 {[%emt 0:00:27]} 6. Nbc3 {[%emt 0:00:11]} Qd7 {[%emt 0:00:10]} 7. d4 {[%emt 0:01:21]} cxd4 {[%emt 0:00:11]} 8. Qxd4 {[%emt 0:00:04]} Nf6 {[%emt 0:01:17]} 9. h3 {[%emt 0:01:24]} Nc6 {[%emt 0:00:16]} 10. Qxd7+ {[%emt 0:01:28]} Bxd7 {[%emt 0:00:00]} 11. Be3 {[%emt 0:00:06]} g6 {[%emt 0:00:34]} 12. O-O-O {[%emt 0:00:12]} Bg7 {[%emt 0:00:04]} 13. g4 {[%emt 0:00:05]} O-O-O {[%emt 0:00:50]} 14. Bg2 {[%emt 0:00:11]} Kb8 {[%emt 0:00:42]} 15. Bf4+ {[%emt 0:01:16]} e5 {[%emt 0:00:52]} 16. Bg3 {[%emt 0:00:05]} Ne8 {[%emt 0:00:32]} 17. Rd3 {[%emt 0:02:04]} Nc7 {[%emt 0:00:11]} 18. Bh4 {[%emt 0:01:10]} f6 {[%emt 0:00:07]} 19. Ne4 {[%emt 0:00:01]} g5 {[%emt 0:00:49]} 20. Bg3 {[%emt 0:01:40]} Be6 {[%emt 0:00:18]} 21. Rgd1 {[%emt 0:00:38]} Rxd3 {[%emt 0:00:04]} 22. Rxd3 {[%emt 0:00:01]} Nb4 {[%emt 0:00:48]} 23. Rd6 {[%emt 0:00:01]} Nxa2+ {[%emt 0:01:13]} 24. Kb1 {[%emt 0:00:30]} Nb4 {[%emt 0:00:06]} 25. Nc5 {[%emt 0:00:01]} Ba2+ {[%emt 0:00:21]} 26. Kc1 {[%emt 0:00:17]} Bd5 {[%emt 0:00:28]} 27. Bxd5 {[%emt 0:00:38]} Nbxd5 {[%emt 0:00:02]} 28. Rd7 {[%emt 0:00:35]} Rg8 {[%emt 0:01:04]} 29. Ne4 {[%emt 0:00:32]} Kc8 {[%emt 0:00:19]} 30. Rf7 {[%emt 0:00:02]} Ne8 {[%emt 0:00:08]} 31. c4 {[%emt 0:00:11]} Ndc7 {[%emt 0:00:23]} 32. b3 {[%emt 0:01:10]} Rf8 {[%emt 0:00:08]} 33. Nd6+ {[%emt 0:00:01]} Nxd6 {[%emt 0:00:09]} 34. Rxg7 {[%emt 0:00:01]} Rf7 {[%emt 0:00:07]} 35. Rg8+ {[%emt 0:00:01]} Kd7 {[%emt 0:00:01]} 36. Nc3 {[%emt 0:00:02]} Kc6 {[%emt 0:00:41]} 37. Kc2 {[%emt 0:00:33]} b5 {[%emt 0:00:05]} 38. cxb5+ {[%emt 0:00:02]} Ncxb5 {[%emt 0:00:02]} 39. Nxb5 {[%emt 0:00:01]} Nxb5 {[%emt 0:00:09]} 40. Kd3 {[%emt 0:00:00]} Rd7+ {[%emt 0:00:05]} 41. Ke4 {[%emt 0:00:05]} Nd6+ {[%emt 0:00:01]} 42. Kf3 {[%emt 0:00:01]} Rb7 {[%emt 0:00:05]} 43. Rf8 {[%emt 0:00:02]} Rxb3+ {[%emt 0:00:06]} 44. Kg2 {[%emt 0:00:00]} Ne4 {[%emt 0:00:01]} 45. h4 {[%emt 0:00:01]} Kd5 {[%emt 0:00:38]} 46. h5 {[%emt 0:00:13]} Nxg3 {[%emt 0:00:29]} 47. fxg3 {[%emt 0:00:01]} Rb2+ {[%emt 0:00:01]} 48. Kf3 {[%emt 0:00:01]} Rb3+ {[%emt 0:00:01]} 49. Kg2 {[%emt 0:00:00]} Rb2+ {[%emt 0:00:00]} 50. Kf3 {[%emt 0:00:00]} Rb3+ {[%emt 0:00:02]} 51. Kg2 {[%emt 0:00:01]} 1/2-1/2

[Event "AI Cup Div-3 2023"]
[Site "Online"]
[Date "2023.09.26"]
[Round "52.2"]
[White "Demchenko, Anton"]
[Black "Vaibhav, Suri"]
[Result "0-1"]
[Annotator "ChessBase"]
[ECO "C47"]
[WhiteElo "2608"]
[BlackElo "2588"]
[PlyCount "82"]
[EventDate "2023.09.18"]
[EventType "k.o."]
[EventCountry "NET"]
[SourceTitle "playchess.com"]
[Source "ChessBase"]
[SourceQuality "1"]
[TimeControl "900+3"]

1. e4 {[%emt 0:00:04]} e5 {[%emt 0:00:04]} 2. Nf3 {[%emt 0:00:02]} Nc6 {[%emt 0:00:00]} 3. Nc3 {[%emt 0:00:04]} Nf6 {[%emt 0:00:02]} 4. d4 {[%emt 0:00:01]} exd4 {[%emt 0:00:01]} 5. Nxd4 {[%emt 0:00:00]} Bb4 {[%emt 0:00:02]} 6. Nxc6 {[%emt 0:00:00]} bxc6 {[%emt 0:00:00]} 7. Bd3 {[%emt 0:00:01]} O-O {[%emt 0:00:01]} 8. O-O {[%emt 0:00:00]} d6 {[%emt 0:00:06]} 9. Bg5 {[%emt 0:00:07]} h6 {[%emt 0:00:01]} 10. Bh4 {[%emt 0:00:01]} g5 {[%emt 0:00:11]} 11. Bg3 {[%emt 0:00:03]} Bg4 {[%emt 0:00:00]} 12. f3 {[%emt 0:00:14]} Be6 {[%emt 0:00:05]} 13. f4 {[%emt 0:00:09]} Bg4 {[%emt 0:00:40]} 14. Be2 {[%emt 0:01:09]} Bxe2 {[%emt 0:00:04]} 15. Qxe2 {[%emt 0:00:01]} Bxc3 {[%emt 0:01:18]} 16. bxc3 {[%emt 0:00:02]} Re8 {[%emt 0:00:01]} 17. e5 {[%emt 0:03:05]} dxe5 {[%emt 0:09:09]} 18. fxg5 {[%emt 0:01:26]} hxg5 {[%emt 0:00:04]} 19. Qf3 {[%emt 0:00:01]} Re6 {[%emt 0:00:05]} 20. Qf5 {[%emt 0:00:03]} Qd2 {[%emt 0:00:12]} 21. Kh1 {[%emt 0:01:05]} Rd8 {[%emt 0:00:52]} 22. Rae1 {[%emt 0:01:15]} e4 {[%emt 0:00:57]} 23. c4 {[%emt 0:00:17]} Rd7 {[%emt 0:00:23]} 24. Be5 {[%emt 0:01:56]} Nh7 {[%emt 0:00:02]} 25. Rb1 {[%emt 0:01:19]} Re8 {[%emt 0:01:04]} 26. Rbe1 {[%emt 0:02:06]} e3 {[%emt 0:00:15]} 27. Bc3 {[%emt 0:00:05]} Qd6 {[%emt 0:00:04]} 28. Qf3 {[%emt 0:00:01]} Qe6 {[%emt 0:00:07]} 29. Re2 {[%emt 0:00:06]} Qxc4 {[%emt 0:00:02]} 30. Be1 {[%emt 0:01:07]} g4 {[%emt 0:00:04]} 31. Qf5 {[%emt 0:00:37]} Qxe2 {[%emt 0:00:01]} 32. Kg1 {[%emt 0:00:01]} Re6 {[%emt 0:00:08]} 33. Bh4 {[%emt 0:00:05]} Qc4 {[%emt 0:00:15]} 34. h3 {[%emt 0:00:03]} e2 {[%emt 0:00:03]} 35. Rf4 {[%emt 0:00:01]} e1=Q+ {[%emt 0:00:13]} 36. Bxe1 {[%emt 0:00:01]} Rxe1+ {[%emt 0:00:00]} 37. Kh2 {[%emt 0:00:00]} g3+ {[%emt 0:00:01]} 38. Kxg3 {[%emt 0:00:01]} Qc3+ {[%emt 0:00:01]} 39. Kh2 {[%emt 0:00:01]} Qe5 {[%emt 0:00:03]} 40. Qg4+ {[%emt 0:00:06]} Kh8 {[%emt 0:00:02]} 41. h4 {[%emt 0:00:04]} Re4 {[%emt 0:00:03]} 0-1